[Event "Cellavision Cup 2019"]
[Site "Lund"]
[Date "2019.08.03"]
[Round "6.9"]
[White "Jakobsen, Peter"]
[Black "Schneider, Stefan"]
[Result "1/2-1/2"]
[ECO "E00"]
[WhiteElo "2250"]
[BlackElo "2379"]
[Annotator "NA"]
[PlyCount "88"]
[EventDate "2019.08.02"]
[EventType "swiss"]
[EventCountry "SWE"]
[SourceTitle "playchess.com"]
[Source "ChessBase"]
[SourceQuality "1"]
[TimeControl "5400+30"]

1. d4 {[%emt 0:00:00]} e6 {[%emt 0:02:14]} 2. c4 {[%emt 0:00:00]} Bb4+ {[%emt 0:00:15]} 3. Bd2 {[%emt 0:00:00]} a5 {[%emt 0:00:11]} 4. e4 {[%emt 0:03:22]} d6 {[%emt 0:02:27]} 5. Nf3 {[%emt 0:00:34]} Nc6 {[%emt 0:01:36]} 6. a3 {[%emt 0:06:07]} Bxd2+ {[%emt 0:00:08]} 7. Qxd2 {[%emt 0:00:07]} Nf6 {[%emt 0:01:46]} 8. Nc3 {[%emt 0:00:07]} O-O {[%emt 0:00:47]} 9. Bd3 {[%emt 0:03:27]} e5 {[%emt 0:05:37]} 10. d5 {[%emt 0:00:06]} Ne7 {[%emt 0:05:13]} 11. O-O {[%emt 0:04:27]} Ng6 {[%emt 0:06:25]} 12. Ne2 {[%emt 0:10:28]} a4 {[%emt 0:02:47]} 13. Bc2 {[%emt 0:08:17]} Nd7 {[%emt 0:01:37]} 14. Ne1 {[%emt 0:00:47]} Nc5 {[%emt 0:02:22]} 15. f3 {[%emt 0:00:46]} f5 {[%emt 0:08:11]} 16. Ng3 {[%emt 0:08:53]} Nh4 {[%emt 0:15:01]} 17. Nd3 {[%emt 0:08:10]} Nxd3 {[%emt 0:09:16]} 18. Bxd3 {[%emt 0:00:25]} f4 {[%emt 0:00:18]} 19. Nh1 {[%emt 0:04:18]} Rf6 {[%emt 0:01:34]} 20. Rf2 {[%emt 0:01:45]} Rg6 {[%emt 0:01:54]} 21. Bf1 {[%emt 0:04:46]} Qg5 {[%emt 0:03:18]} 22. Qe2 {[%emt 0:01:08]} Bd7 {[%emt 0:05:09]} 23. Rc1 {[%emt 0:00:23]} b6 {[%emt 0:01:54]} 24. Rc2 {[%emt 0:00:10]} Rf8 {[%emt 0:02:38]} 25. Rd2 {[%emt 0:03:21]} Qh5 {[%emt 0:00:42]} 26. Rd3 {[%emt 0:10:06]} Rg5 {[%emt 0:01:23]} 27. g4 {[%emt 0:02:22]} Qe8 {[%emt 0:10:46]} 28. Bg2 {[%emt 0:01:46]} h5 {[%emt 0:00:38]} 29. h3 {[%emt 0:00:05]} Rf6 {[%emt 0:01:39]} 30. Rf1 {[%emt 0:04:51]} b5 {[%emt 0:04:32]} 31. Nf2 {[%emt 0:01:33]} bxc4 {[%emt 0:00:06]} 32. Rc3 {[%emt 0:00:03]} Bb5 {[%emt 0:00:17]} 33. Rfc1 {[%emt 0:00:35]} Nxg2 {[%emt 0:02:34]} 34. Kxg2 {[%emt 0:00:02]} hxg4 {[%emt 0:00:18]} 35. hxg4 {[%emt 0:00:44]} Rh6 {[%emt 0:00:24]} 36. Nh3 {[%emt 0:07:26]} Rgg6 {[%emt 0:00:06]} 37. Qf2 {[%emt 0:00:30]} Qb8 {[%emt 0:00:46]} 38. Rh1 {[%emt 0:00:47]} Rh8 {[%emt 0:00:45]} 39. Rcc1 {[%emt 0:00:37]} Ba6 {[%emt 0:00:42]} 40. Qc2 {[%emt 0:00:36]} Qb6 {[%emt 0:00:28]} 41. Nf2 {[%emt 0:01:24]} Rxh1 {[%emt 0:00:26]} 42. Rxh1 {[%emt 0:00:08]} Qb5 {[%emt 0:00:51]} 43. Nd1 {[%emt 0:00:21]} Rf6 {[%emt 0:00:13]} 44. Qf2 {[%emt 0:00:52]} Qb8 {[%emt 0:00:30]} 1/2-1/2

[Event "Cellavision Cup 2019"]
[Site "Lund"]
[Date "2019.08.03"]
[Round "6.10"]
[White "Malmstig, Erik"]
[Black "Kring, Stephan"]
[Result "1-0"]
[ECO "A85"]
[WhiteElo "2357"]
[BlackElo "2064"]
[Annotator "NA"]
[PlyCount "87"]
[EventDate "2019.08.02"]
[EventType "swiss"]
[EventCountry "SWE"]
[SourceTitle "playchess.com"]
[Source "ChessBase"]
[SourceQuality "1"]
[TimeControl "5400+30"]

1. d4 {[%emt 0:00:00]} f5 {[%emt 0:00:00]} 2. c4 {[%emt 0:00:40]} Nf6 {[%emt 0:00:00]} 3. Nc3 {[%emt 0:00:15]} g6 {[%emt 0:00:13]} 4. g3 {[%emt 0:00:12]} Bg7 {[%emt 0:00:07]} 5. Bg2 {[%emt 0:00:06]} O-O {[%emt 0:00:11]} 6. Nh3 {[%emt 0:00:37]} d6 {[%emt 0:02:46]} 7. d5 {[%emt 0:00:47]} c6 {[%emt 0:06:20]} 8. Nf4 {[%emt 0:02:44]} Qe8 {[%emt 0:01:05]} 9. h4 {[%emt 0:05:26]} Na6 {[%emt 0:19:31]} 10. h5 {[%emt 0:06:36]} e5 {[%emt 0:09:27]} 11. dxc6 {[%emt 0:11:05]} exf4 {[%emt 0:15:04]} 12. cxb7 {[%emt 0:03:55]} Bxb7 {[%emt 0:00:51]} 13. Bxb7 {[%emt 0:00:20]} fxg3 {[%emt 0:02:55]} 14. fxg3 {[%emt 0:01:57]} Nb4 {[%emt 0:04:08]} 15. h6 {[%emt 0:02:52]} Bh8 {[%emt 0:00:22]} 16. a3 {[%emt 0:01:23]} Rb8 {[%emt 0:01:20]} 17. Bf3 {[%emt 0:05:22]} Nc6 {[%emt 0:01:36]} 18. Qxd6 {[%emt 0:05:35]} Ne5 {[%emt 0:05:45]} 19. O-O {[%emt 0:05:43]} Nxc4 {[%emt 0:04:53]} 20. Qd4 {[%emt 0:09:51]} Nb6 {[%emt 0:03:25]} 21. Qh4 {[%emt 0:04:10]} Qe6 {[%emt 0:02:07]} 22. Bg5 {[%emt 0:06:33]} Rbc8 {[%emt 0:05:57]} 23. Rfd1 {[%emt 0:04:23]} Rc4 {[%emt 0:01:24]} 24. Bf4 {[%emt 0:10:16]} Re8 {[%emt 0:05:01]} 25. Rd3 {[%emt 0:01:41]} Ne4 {[%emt 0:00:24]} 26. Nxe4 {[%emt 0:02:59]} fxe4 {[%emt 0:00:14]} 27. Bg4 {[%emt 0:03:04]} Qf6 {[%emt 0:01:01]} 28. Bg5 {[%emt 0:01:59]} Qxb2 {[%emt 0:01:03]} 29. Rdd1 {[%emt 0:00:17]} Qe5 {[%emt 0:00:47]} 30. Rab1 {[%emt 0:01:09]} e3 {[%emt 0:03:31]} 31. Bf4 {[%emt 0:00:33]} Qf6 {[%emt 0:00:20]} 32. Qh3 {[%emt 0:00:16]} Qe7 {[%emt 0:00:57]} 33. Bd6 {[%emt 0:01:32]} Qf7 {[%emt 0:01:25]} 34. Bf3 {[%emt 0:00:29]} Rd4 {[%emt 0:00:28]} 35. Rxd4 {[%emt 0:01:06]} Bxd4 {[%emt 0:00:08]} 36. Rd1 {[%emt 0:00:27]} Qf6 {[%emt 0:00:26]} 37. Bb4 {[%emt 0:00:10]} Qe5 {[%emt 0:00:44]} 38. Qh4 {[%emt 0:01:23]} Bb2 {[%emt 0:01:04]} 39. Rd8 {[%emt 0:00:16]} Kf7 {[%emt 0:00:25]} 40. Kg2 {[%emt 0:00:29]} Qe6 {[%emt 0:01:14]} 41. Qf4+ {[%emt 0:00:32]} Bf6 {[%emt 0:00:22]} 42. Rxe8 {[%emt 0:00:51]} Qxe8 {[%emt 0:00:14]} 43. Qc7+ {[%emt 0:00:24]} Qd7 {[%emt 0:00:07]} 44. Bd5+ {[%emt 0:00:37]} 1-0

[Event "Cellavision Cup 2019"]
[Site "Lund"]
[Date "2019.08.03"]
[Round "6.11"]
[White "Andersson, Lars"]
[Black "Olund, Joar"]
[Result "0-1"]
[ECO "A45"]
[WhiteElo "1990"]
[BlackElo "2313"]
[Annotator "NA"]
[PlyCount "106"]
[EventDate "2019.08.02"]
[EventType "swiss"]
[EventCountry "SWE"]
[SourceTitle "playchess.com"]
[Source "ChessBase"]
[SourceQuality "1"]
[TimeControl "5400+30"]

1. d4 {[%emt 0:00:00]} Nf6 {[%emt 0:00:00]} 2. Bf4 {[%emt 0:00:22]} g6 {[%emt 0:00:30]} 3. e3 {[%emt 0:00:14]} Bg7 {[%emt 0:00:11]} 4. Nf3 {[%emt 0:00:12]} d6 {[%emt 0:01:19]} 5. Be2 {[%emt 0:00:22]} O-O {[%emt 0:00:37]} 6. O-O {[%emt 0:00:16]} Nc6 {[%emt 0:01:52]} 7. Nc3 {[%emt 0:07:48]} Nd7 {[%emt 0:06:19]} 8. h3 {[%emt 0:09:39]} e5 {[%emt 0:00:31]} 9. Bg5 {[%emt 0:00:24]} f6 {[%emt 0:03:15]} 10. Bh4 {[%emt 0:00:05]} g5 {[%emt 0:00:25]} 11. Bg3 {[%emt 0:00:06]} f5 {[%emt 0:00:44]} 12. dxe5 {[%emt 0:04:55]} dxe5 {[%emt 0:00:33]} 13. Qd5+ {[%emt 0:23:57]} Kh8 {[%emt 0:01:34]} 14. Rad1 {[%emt 0:04:59]} Qe7 {[%emt 0:08:27]} 15. Rfe1 {[%emt 0:08:49]} Nb6 {[%emt 0:06:32]} 16. Qd2 {[%emt 0:03:48]} Be6 {[%emt 0:05:06]} 17. Qc1 {[%emt 0:01:02]} e4 {[%emt 0:12:33]} 18. Nd2 {[%emt 0:12:18]} Ne5 {[%emt 0:01:26]} 19. Nb3 {[%emt 0:01:27]} c5 {[%emt 0:01:37]} 20. Nb5 {[%emt 0:06:35]} a6 {[%emt 0:09:06]} 21. Na3 {[%emt 0:00:49]} Rac8 {[%emt 0:03:17]} 22. c4 {[%emt 0:02:55]} Rfd8 {[%emt 0:07:39]} 23. Rxd8+ {[%emt 0:02:19]} Rxd8 {[%emt 0:00:17]} 24. Rd1 {[%emt 0:00:45]} Na4 {[%emt 0:08:58]} 25. Rxd8+ {[%emt 0:01:45]} Qxd8 {[%emt 0:00:02]} 26. Nb1 {[%emt 0:03:27]} Nd3 {[%emt 0:09:56]} 27. Bxd3 {[%emt 0:00:20]} Qxd3 {[%emt 0:00:50]} 28. Nc3 {[%emt 0:01:53]} Nxc3 {[%emt 0:01:39]} 29. bxc3 {[%emt 0:00:16]} Bxc4 {[%emt 0:03:31]} 30. Nxc5 {[%emt 0:00:53]} Qxc3 {[%emt 0:00:15]} 31. Qd1 {[%emt 0:01:37]} Qa1 {[%emt 0:00:25]} 32. Qxa1 {[%emt 0:00:19]} Bxa1 {[%emt 0:00:07]} 33. Nxb7 {[%emt 0:01:18]} Bxa2 {[%emt 0:00:43]} 34. Bc7 {[%emt 0:00:21]} Kg8 {[%emt 0:02:33]} 35. Nc5 {[%emt 0:00:21]} Bc4 {[%emt 0:00:10]} 36. g4 {[%emt 0:00:07]} fxg4 {[%emt 0:00:41]} 37. Nxe4 {[%emt 0:00:56]} gxh3 {[%emt 0:01:08]} 38. Nxg5 {[%emt 0:00:12]} Bc3 {[%emt 0:00:19]} 39. Ne4 {[%emt 0:00:14]} Bb4 {[%emt 0:01:17]} 40. Nd6 {[%emt 0:00:38]} Bd5 {[%emt 0:01:06]} 41. Nf5 {[%emt 0:00:16]} Kf7 {[%emt 0:00:43]} 42. e4 {[%emt 0:01:22]} Bxe4 {[%emt 0:00:32]} 43. Nd6+ {[%emt 0:00:02]} Bxd6 {[%emt 0:00:07]} 44. Bxd6 {[%emt 0:00:02]} Ke6 {[%emt 0:00:10]} 45. Ba3 {[%emt 0:00:20]} Kf5 {[%emt 0:01:50]} 46. Kh2 {[%emt 0:00:36]} Kg4 {[%emt 0:00:07]} 47. Bd6 {[%emt 0:00:17]} Bf5 {[%emt 0:00:08]} 48. Kg1 {[%emt 0:00:57]} a5 {[%emt 0:00:12]} 49. Bc5 {[%emt 0:00:28]} Kf3 {[%emt 0:00:18]} 50. Bd4 {[%emt 0:00:36]} a4 {[%emt 0:00:16]} 51. Bc5 {[%emt 0:00:05]} Ke4 {[%emt 0:01:17]} 52. Kh2 {[%emt 0:00:29]} Kd5 {[%emt 0:00:12]} 53. Be7 {[%emt 0:01:31]} Kc4 {[%emt 0:00:06]} 0-1

[Event "Cellavision Cup 2019"]
[Site "Lund"]
[Date "2019.08.03"]
[Round "6.12"]
[White "Cramling, Pia"]
[Black "Bengtsson, Siv"]
[Result "1-0"]
[ECO "A05"]
[WhiteElo "2479"]
[BlackElo "2091"]
[Annotator "ChessBase"]
[PlyCount "56"]
[EventDate "2019.08.02"]
[EventType "swiss"]
[EventCountry "SWE"]
[SourceTitle "playchess.com"]
[Source "ChessBase"]
[SourceQuality "1"]
[TimeControl "5400+30"]

1. Nf3 {[%emt 0:02:03]} Nf6 {[%emt 0:00:00]} 2. c4 {[%emt 0:00:14]} g6 {[%emt 0:00:29]} 3. Nc3 {[%emt 0:00:48]} d5 {[%emt 0:01:24]} 4. cxd5 {[%emt 0:00:45]} Nxd5 {[%emt 0:00:13]} 5. Qb3 {[%emt 0:00:12]} c6 {[%emt 0:06:19]} 6. e4 {[%emt 0:03:44]} Nb6 {[%emt 0:03:22]} 7. d4 {[%emt 0:01:08]} Bg7 {[%emt 0:00:32]} 8. Be3 {[%emt 0:06:47]} Be6 {[%emt 0:08:21]} 9. Qc2 {[%emt 0:00:35]} O-O {[%emt 0:02:06]} 10. h4 {[%emt 0:12:07]} N8d7 {[%emt 0:12:56]} 11. h5 {[%emt 0:01:32]} Bg4 {[%emt 0:05:37]} 12. hxg6 {[%emt 0:02:01]} hxg6 {[%emt 0:06:18]} 13. Nh2 {[%emt 0:05:23]} Be6 {[%emt 0:01:41]} 14. O-O-O {[%emt 0:02:50]} f5 {[%emt 0:04:58]} 15. Nf3 {[%emt 0:02:42]} Nf6 {[%emt 0:09:32]} 16. Ne5 {[%emt 0:08:43]} Qe8 {[%emt 0:03:30]} 17. Bd3 {[%emt 0:01:26]} Nfd7 {[%emt 0:03:30]} 18. f4 {[%emt 0:04:39]} Nxe5 {[%emt 0:01:55]} 19. dxe5 {[%emt 0:00:34]} Nc4 {[%emt 0:02:53]} 20. Bxc4 {[%emt 0:00:54]} Bxc4 {[%emt 0:00:06]} 21. exf5 {[%emt 0:00:12]} gxf5 {[%emt 0:01:27]} 22. g4 {[%emt 0:00:32]} e6 {[%emt 0:07:49]} 23. Rdg1 {[%emt 0:03:27]} Bd5 {[%emt 0:02:13]} 24. Rh3 {[%emt 0:04:46]} b5 {[%emt 0:04:54]} 25. Bc5 {[%emt 0:03:31]} Rf7 {[%emt 0:00:27]} 26. Qh2 {[%emt 0:00:40]} Rd7 {[%emt 0:08:03]} 27. gxf5 {[%emt 0:00:31]} Kf7 {[%emt 0:00:31]} 28. Rxg7+ {[%emt 0:01:02]} Kxg7 {[%emt 0:00:01]} 1-0

[Event "Cellavision Cup 2019"]
[Site "Lund"]
[Date "2019.08.03"]
[Round "6.13"]
[White "Smith, Axel"]
[Black "Namini, Armin"]
[Result "1/2-1/2"]
[ECO "A16"]
[WhiteElo "2469"]
[BlackElo "2241"]
[Annotator "ChessBase"]
[PlyCount "53"]
[EventDate "2019.08.02"]
[EventType "swiss"]
[EventCountry "SWE"]
[SourceTitle "playchess.com"]
[Source "ChessBase"]
[SourceQuality "1"]
[TimeControl "5400+30"]

1. c4 {[%emt 0:00:00]} Nf6 {[%emt 0:00:02]} 2. Nc3 {[%emt 0:00:00]} c6 {[%emt 0:02:05]} 3. e4 {[%emt 0:00:24]} d5 {[%emt 0:00:07]} 4. e5 {[%emt 0:02:21]} d4 {[%emt 0:00:19]} 5. exf6 {[%emt 0:01:13]} dxc3 {[%emt 0:00:07]} 6. bxc3 {[%emt 0:00:55]} exf6 {[%emt 0:00:40]} 7. d4 {[%emt 0:02:23]} c5 {[%emt 0:02:55]} 8. Nf3 {[%emt 0:04:36]} Be7 {[%emt 0:03:45]} 9. Be2 {[%emt 0:03:55]} O-O {[%emt 0:00:49]} 10. O-O {[%emt 0:00:07]} Qc7 {[%emt 0:07:41]} 11. Be3 {[%emt 0:01:42]} Rd8 {[%emt 0:00:53]} 12. Qc2 {[%emt 0:04:07]} Nc6 {[%emt 0:05:18]} 13. Rfd1 {[%emt 0:03:26]} b6 {[%emt 0:03:42]} 14. h3 {[%emt 0:07:12]} Na5 {[%emt 0:04:30]} 15. Nd2 {[%emt 0:02:46]} Ba6 {[%emt 0:09:44]} 16. d5 {[%emt 0:01:48]} g6 {[%emt 0:04:39]} 17. g4 {[%emt 0:14:37]} Kg7 {[%emt 0:06:13]} 18. Qe4 {[%emt 0:02:05]} Bd6 {[%emt 0:02:34]} 19. Rac1 {[%emt 0:04:52]} h5 {[%emt 0:04:08]} 20. gxh5 {[%emt 0:19:35]} f5 {[%emt 0:00:26]} 21. Qh4 {[%emt 0:01:04]} f4 {[%emt 0:03:03]} 22. Ne4 {[%emt 0:00:27]} fxe3 {[%emt 0:03:08]} 23. Qf6+ {[%emt 0:00:02]} Kg8 {[%emt 0:03:42]} 24. hxg6 {[%emt 0:00:38]} Qe7 {[%emt 0:08:42]} 25. gxf7+ {[%emt 0:09:33]} Qxf7 {[%emt 0:00:02]} 26. Qh4 {[%emt 0:00:18]} Be7 {[%emt 0:12:03]} 27. Qg3+ {[%emt 0:00:02]} 1/2-1/2

[Event "Cellavision Cup 2019"]
[Site "Lund"]
[Date "2019.08.03"]
[Round "6.14"]
[White "Johansson, Gunnar"]
[Black "Hansen, Torbjorn Ringdal"]
[Result "0-1"]
[ECO "A30"]
[WhiteElo "2252"]
[BlackElo "2432"]
[Annotator "NA"]
[PlyCount "52"]
[EventDate "2019.08.02"]
[EventType "swiss"]
[EventCountry "SWE"]
[SourceTitle "playchess.com"]
[Source "ChessBase"]
[SourceQuality "1"]
[TimeControl "5400+30"]

1. c4 {[%emt 0:00:00]} c5 {[%emt 0:00:45]} 2. Nf3 {[%emt 0:00:00]} Nc6 {[%emt 0:00:53]} 3. g3 {[%emt 0:01:20]} g6 {[%emt 0:00:16]} 4. Bg2 {[%emt 0:01:01]} Bg7 {[%emt 0:00:29]} 5. O-O {[%emt 0:00:28]} d6 {[%emt 0:00:14]} 6. Nc3 {[%emt 0:00:50]} Bf5 {[%emt 0:00:10]} 7. a3 {[%emt 0:11:47]} Qd7 {[%emt 0:01:21]} 8. Re1 {[%emt 0:02:23]} Bh3 {[%emt 0:01:14]} 9. Bh1 {[%emt 0:17:28]} h5 {[%emt 0:01:11]} 10. Ng5 {[%emt 0:06:31]} h4 {[%emt 0:08:12]} 11. Nxh3 {[%emt 0:00:40]} hxg3 {[%emt 0:00:50]} 12. hxg3 {[%emt 0:05:12]} Rxh3 {[%emt 0:01:10]} 13. Bg2 {[%emt 0:00:37]} Nf6 {[%emt 0:00:48]} 14. Nd5 {[%emt 0:17:05]} O-O-O {[%emt 0:07:06]} 15. Bxh3 {[%emt 0:03:11]} Qxh3 {[%emt 0:00:07]} 16. Nf4 {[%emt 0:00:13]} Qf5 {[%emt 0:06:48]} 17. Kg2 {[%emt 0:03:31]} g5 {[%emt 0:02:05]} 18. Nd5 {[%emt 0:08:42]} Rh8 {[%emt 0:08:45]} 19. Rh1 {[%emt 0:01:01]} Rxh1 {[%emt 0:00:12]} 20. Qxh1 {[%emt 0:00:27]} Qe4+ {[%emt 0:00:14]} 21. Kg1 {[%emt 0:03:48]} Qxe2 {[%emt 0:00:15]} 22. Ne3 {[%emt 0:04:55]} Ng4 {[%emt 0:06:09]} 23. Nxg4 {[%emt 0:02:07]} Qxg4 {[%emt 0:00:12]} 24. d3 {[%emt 0:00:55]} Nd4 {[%emt 0:06:31]} 25. Qe4 {[%emt 0:02:01]} Qd1+ {[%emt 0:00:39]} 26. Kg2 {[%emt 0:00:34]} Be5 {[%emt 0:01:05]} 0-1

[Event "Cellavision Cup 2019"]
[Site "Lund"]
[Date "2019.08.03"]
[Round "6.15"]
[White "Jepson, Christian"]
[Black "Berggren Torell, Harald"]
[Result "1-0"]
[ECO "B09"]
[WhiteElo "2391"]
[BlackElo "2137"]
[Annotator "NA"]
[PlyCount "153"]
[EventDate "2019.08.02"]
[EventType "swiss"]
[EventCountry "SWE"]
[SourceTitle "playchess.com"]
[Source "ChessBase"]
[SourceQuality "1"]
[TimeControl "5400+30"]

1. e4 {[%emt 0:00:00]} d6 {[%emt 0:00:00]} 2. d4 {[%emt 0:00:00]} Nf6 {[%emt 0:00:00]} 3. Nc3 {[%emt 0:00:00]} g6 {[%emt 0:00:00]} 4. f4 {[%emt 0:00:00]} Bg7 {[%emt 0:00:00]} 5. Nf3 {[%emt 0:00:00]} O-O {[%emt 0:00:07]} 6. Bd3 {[%emt 0:06:28]} Nc6 {[%emt 0:01:50]} 7. e5 {[%emt 0:01:40]} dxe5 {[%emt 0:00:02]} 8. dxe5 {[%emt 0:00:07]} Nd5 {[%emt 0:02:29]} 9. Qe2 {[%emt 0:03:34]} Ncb4 {[%emt 0:21:32]} 10. Nxd5 {[%emt 0:05:57]} Nxd5 {[%emt 0:01:03]} 11. Bd2 {[%emt 0:02:59]} c6 {[%emt 0:06:58]} 12. a3 {[%emt 0:08:42]} Bf5 {[%emt 0:01:29]} 13. Bxf5 {[%emt 0:01:19]} gxf5 {[%emt 0:00:02]} 14. Rd1 {[%emt 0:13:07]} Qc8 {[%emt 0:00:59]} 15. h3 {[%emt 0:06:52]} f6 {[%emt 0:02:55]} 16. O-O {[%emt 0:02:07]} fxe5 {[%emt 0:01:44]} 17. Nxe5 {[%emt 0:04:02]} Qe6 {[%emt 0:00:36]} 18. Rfe1 {[%emt 0:04:44]} Bxe5 {[%emt 0:03:47]} 19. Qf2 {[%emt 0:01:03]} Qg6 {[%emt 0:03:06]} 20. Rxe5 {[%emt 0:00:44]} Nf6 {[%emt 0:00:10]} 21. Rxe7 {[%emt 0:05:56]} Rad8 {[%emt 0:02:55]} 22. Qf3 {[%emt 0:02:02]} Ne4 {[%emt 0:02:23]} 23. Bc3 {[%emt 0:01:59]} Rxd1+ {[%emt 0:00:48]} 24. Qxd1 {[%emt 0:00:05]} Nxc3 {[%emt 0:00:25]} 25. bxc3 {[%emt 0:00:12]} Re8 {[%emt 0:00:11]} 26. Qe2 {[%emt 0:02:08]} Rxe7 {[%emt 0:00:32]} 27. Qxe7 {[%emt 0:00:04]} b5 {[%emt 0:00:31]} 28. Qxa7 {[%emt 0:05:38]} Qd6 {[%emt 0:04:24]} 29. Qd4 {[%emt 0:08:14]} Qxa3 {[%emt 0:01:16]} 30. Qd8+ {[%emt 0:02:11]} Kf7 {[%emt 0:02:35]} 31. Qd7+ {[%emt 0:00:09]} Kg8 {[%emt 0:00:22]} 32. Qe6+ {[%emt 0:01:36]} Kg7 {[%emt 0:00:11]} 33. Qe5+ {[%emt 0:00:13]} Kg6 {[%emt 0:00:27]} 34. Kf2 {[%emt 0:00:54]} Qa7+ {[%emt 0:01:42]} 35. Kf3 {[%emt 0:01:28]} Qd7 {[%emt 0:00:43]} 36. Qd4 {[%emt 0:01:48]} Qe7 {[%emt 0:11:58]} 37. g4 {[%emt 0:00:57]} Qe1 {[%emt 0:01:27]} 38. Qd6+ {[%emt 0:03:49]} Kf7 {[%emt 0:00:32]} 39. Qd7+ {[%emt 0:00:55]} Kg8 {[%emt 0:00:30]} 40. Qc8+ {[%emt 0:00:34]} Kg7 {[%emt 0:00:10]} 41. Qc7+ {[%emt 0:00:54]} Kg8 {[%emt 0:00:17]} 42. Qb8+ {[%emt 0:03:57]} Kf7 {[%emt 0:00:06]} 43. Qa7+ {[%emt 0:00:21]} Kg8 {[%emt 0:01:57]} 44. Qe3 {[%emt 0:00:11]} fxg4+ {[%emt 0:01:58]} 45. hxg4 {[%emt 0:00:02]} Qb1 {[%emt 0:04:27]} 46. Qe8+ {[%emt 0:01:45]} Kg7 {[%emt 0:00:02]} 47. Qe5+ {[%emt 0:00:19]} Kg8 {[%emt 0:01:57]} 48. Qg5+ {[%emt 0:00:02]} Kf7 {[%emt 0:01:12]} 49. Qf5+ {[%emt 0:00:04]} Kg8 {[%emt 0:00:07]} 50. Qg5+ {[%emt 0:00:05]} Kf7 {[%emt 0:00:05]} 51. Qf5+ {[%emt 0:00:05]} Kg8 {[%emt 0:00:06]} 52. Ke2 {[%emt 0:00:09]} Qh1 {[%emt 0:04:50]} 53. g5 {[%emt 0:00:10]} Qg2+ {[%emt 0:03:11]} 54. Kd3 {[%emt 0:00:25]} Qf3+ {[%emt 0:00:43]} 55. Kd2 {[%emt 0:00:43]} c5 {[%emt 0:01:54]} 56. Qe6+ {[%emt 0:00:32]} Kf8 {[%emt 0:01:17]} 57. Qf6+ {[%emt 0:01:31]} Kg8 {[%emt 0:00:05]} 58. Qd8+ {[%emt 0:01:09]} Kf7 {[%emt 0:01:11]} 59. Qf6+ {[%emt 0:00:19]} Kg8 {[%emt 0:00:08]} 60. Kc1 {[%emt 0:00:26]} Qe3+ {[%emt 0:03:11]} 61. Kb2 {[%emt 0:00:23]} b4 {[%emt 0:00:48]} 62. Qd8+ {[%emt 0:00:33]} Kf7 {[%emt 0:00:01]} 63. Qf6+ {[%emt 0:00:03]} Kg8 {[%emt 0:00:07]} 64. cxb4 {[%emt 0:00:21]} cxb4 {[%emt 0:00:44]} 65. Qd8+ {[%emt 0:00:39]} Kg7 {[%emt 0:00:17]} 66. Qf6+ {[%emt 0:00:47]} Kg8 {[%emt 0:00:07]} 67. f5 {[%emt 0:00:17]} Qa3+ {[%emt 0:00:58]} 68. Kb1 {[%emt 0:00:02]} Qa7 {[%emt 0:01:09]} 69. Qe6+ {[%emt 0:01:23]} Kf8 {[%emt 0:00:08]} 70. Qd6+ {[%emt 0:00:42]} Kg8 {[%emt 0:00:09]} 71. Qe6+ {[%emt 0:02:03]} Kf8 {[%emt 0:00:06]} 72. Qh6+ {[%emt 0:00:11]} Ke8 {[%emt 0:00:30]} 73. g6 {[%emt 0:00:16]} Qg1+ {[%emt 0:00:35]} 74. Qc1 {[%emt 0:00:27]} Qa7 {[%emt 0:00:36]} 75. Qe1+ {[%emt 0:00:13]} Kd8 {[%emt 0:00:10]} 76. Qh4+ {[%emt 0:00:45]} Kc8 {[%emt 0:00:10]} 77. Qc4+ {[%emt 0:00:08]} 1-0

[Event "Cellavision Cup 2019"]
[Site "Lund"]
[Date "2019.08.03"]
[Round "6.16"]
[White "Rostgaard, Tobias Valentin"]
[Black "Svensson, Mikael"]
[Result "1/2-1/2"]
[ECO "C07"]
[WhiteElo "2390"]
[BlackElo "2147"]
[Annotator "NA"]
[PlyCount "78"]
[EventDate "2019.08.02"]
[EventType "swiss"]
[EventCountry "SWE"]
[SourceTitle "playchess.com"]
[Source "ChessBase"]
[SourceQuality "1"]
[TimeControl "5400+30"]

1. e4 {[%emt 0:01:33]} e6 {[%emt 0:00:00]} 2. d4 {[%emt 0:00:10]} d5 {[%emt 0:00:00]} 3. Nd2 {[%emt 0:00:06]} c5 {[%emt 0:00:00]} 4. Ngf3 {[%emt 0:00:12]} cxd4 {[%emt 0:00:12]} 5. exd5 {[%emt 0:00:09]} Qxd5 {[%emt 0:00:07]} 6. Bc4 {[%emt 0:00:05]} Qd7 {[%emt 0:00:18]} 7. O-O {[%emt 0:00:18]} Nc6 {[%emt 0:00:14]} 8. Nb3 {[%emt 0:00:11]} Nf6 {[%emt 0:00:12]} 9. Nbxd4 {[%emt 0:00:56]} Nxd4 {[%emt 0:00:06]} 10. Nxd4 {[%emt 0:00:05]} a6 {[%emt 0:00:08]} 11. Re1 {[%emt 0:00:18]} Bc5 {[%emt 0:00:45]} 12. Be3 {[%emt 0:08:01]} Qc7 {[%emt 0:01:38]} 13. Be2 {[%emt 0:10:31]} e5 {[%emt 0:03:36]} 14. Bf1 {[%emt 0:12:59]} O-O {[%emt 0:03:50]} 15. Nb3 {[%emt 0:00:22]} Bg4 {[%emt 0:12:32]} 16. Qc1 {[%emt 0:04:16]} Bd6 {[%emt 0:04:54]} 17. Bg5 {[%emt 0:01:16]} Bf5 {[%emt 0:05:44]} 18. Bxf6 {[%emt 0:00:25]} gxf6 {[%emt 0:00:07]} 19. c3 {[%emt 0:00:38]} Rfd8 {[%emt 0:04:12]} 20. Qh6 {[%emt 0:01:51]} Bg6 {[%emt 0:01:03]} 21. Nd2 {[%emt 0:04:10]} Bf8 {[%emt 0:01:22]} 22. Qe3 {[%emt 0:00:06]} Bc5 {[%emt 0:01:01]} 23. Qe2 {[%emt 0:00:06]} Qb6 {[%emt 0:04:23]} 24. Nc4 {[%emt 0:00:13]} Qe6 {[%emt 0:00:19]} 25. Rad1 {[%emt 0:00:32]} b5 {[%emt 0:01:42]} 26. b4 {[%emt 0:06:26]} Qxc4 {[%emt 0:13:37]} 27. Qxc4 {[%emt 0:00:37]} bxc4 {[%emt 0:00:19]} 28. bxc5 {[%emt 0:00:06]} Bd3 {[%emt 0:00:58]} 29. Bxd3 {[%emt 0:00:57]} Rxd3 {[%emt 0:03:53]} 30. Rxd3 {[%emt 0:00:23]} cxd3 {[%emt 0:00:05]} 31. f3 {[%emt 0:00:09]} Rc8 {[%emt 0:01:19]} 32. Rd1 {[%emt 0:00:11]} Rxc5 {[%emt 0:00:36]} 33. Rxd3 {[%emt 0:00:05]} Rb5 {[%emt 0:10:33]} 34. Rd2 {[%emt 0:01:04]} Rb1+ {[%emt 0:00:17]} 35. Kf2 {[%emt 0:00:23]} Rc1 {[%emt 0:00:06]} 36. Rd6 {[%emt 0:03:28]} Rc2+ {[%emt 0:01:16]} 37. Kg3 {[%emt 0:00:32]} Rxa2 {[%emt 0:00:45]} 38. Rxf6 {[%emt 0:00:14]} Kg7 {[%emt 0:01:11]} 39. Rb6 {[%emt 0:00:21]} Rc2 {[%emt 0:02:14]} 1/2-1/2